Workbook

Sheet Sheet1
A1: 中国石油大学（北京）马克思主义学院马克思主义理论专业2020级博士研究生综合测评汇总表
A2: 学号 | B2: 德育成绩 | G2: 智育成绩 | L2: 文体成绩 | P2: 总分 | Q2: 排名
B3: 基础分 | C3: 奖励分 | D3: 惩罚分 | E3: 总 分 | F3: 基准后总分 | G3: 学习成绩分 | H3: 奖励分 | I3: 惩罚分 | J3: 总分 | K3: 基准后总分 | L3: 基本分 | M3: 奖励分 | N3: 惩罚分 | O3: 总 分
A4: 2020311001 | B4: 100 | C4: 9 | D4: 0 | E4: =B4+C4 -> 109 | F4: =E4/MAX($E$4:$E$11)*100 -> 94.7826087 | G4: 100 | H4: 11.8 | I4: 0 | J4: =G4+H4 -> 111.8 | K4: =J4/MAX($J$4:$J$11)*100 -> 91.94078947 | L4: 100 | M4: 0 | N4: 0 | O4: 100 | P4: =F4*0.2+K4*0.7+O4*0.1 -> 93.31507437 | Q4: =RANK(P4,$P$4:$P$11,0) -> 3
A5: 2020311002 | B5: 100 | C5: 15 | D5: 0 | E5: =B5+C5 -> 115 | F5: =E5/MAX($E$4:$E$11)*100 -> 100 | G5: 100 | H5: 11 | I5: 0 | J5: =G5+H5 -> 111 | K5: =J5/MAX($J$4:$J$11)*100 -> 91.28289474 | L5: 100 | M5: 0 | N5: 0 | O5: 100 | P5: =F5*0.2+K5*0.7+O5*0.1 -> 93.89802632 | Q5: =RANK(P5,$P$4:$P$11,0) -> 2
A6: 2020311003 | B6: 100 | C6: 8 | D6: 0 | E6: 108 | F6: 93.91304348 | G6: 100 | H6: 0 | I6: 0 | J6: 100 | K6: 82.23684211 | L6: 100 | M6: 0 | N6: 0 | O6: 100 | P6: 86.34839817 | Q6: 7
A7: 2020311004 | B7: 100 | C7: 8 | D7: 0 | E7: 108 | F7: 93.91304348 | G7: 100 | H7: 0 | I7: 0 | J7: 100 | K7: 82.23684211 | L7: 100 | M7: 0 | N7: 0 | O7: 100 | P7: 86.34839817 | Q7: 7
A8: 2020311005 | B8: 100 | C8: 11 | D8: 0 | E8: 111 | F8: 96.52173913 | G8: 100 | H8: 21.6 | I8: 0 | J8: 121.6 | K8: 100 | L8: 100 | M8: 0 | N8: 0 | O8: 100 | P8: 99.30434783 | Q8: 1
A9: 2020311006 | B9: 100 | C9: 11 | D9: 0 | E9: 111 | F9: 96.52173913 | G9: 100 | H9: 0 | I9: 0 | J9: 100 | K9: 82.23684211 | L9: 100 | M9: 0 | N9: 0 | O9: 100 | P9: 86.8701373 | Q9: 6
A10: 2020311007 | B10: 100 | C10: 14 | D10: 0 | E10: 114 | F10: 99.13043478 | G10: 100 | H10: 3 | I10: 0 | J10: 103 | K10: 84.70394737 | L10: 100 | M10: 0 | N10: 0 | O10: 100 | P10: 89.11885011 | Q10: 4
A11: 2020311008 | B11: 100 | C11: 8 | D11: 0 | E11: 108 | F11: 93.91304348 | G11: 100 | H11: 4.8 | I11: 0 | J11: 104.8 | K11: 86.18421053 | L11: 100 | M11: 0 | N11: 0 | O11: 100 | P11: 89.11155606 | Q11: 5
